fUSD/lending_fUSD_20260103
["ID","MTS","AMOUNT","RATE_DAILY","PERIOD"]
[400374239,1767453048562,-150.0,0.00042002,30]
[400374240,1767453048572,-150.0,0.00042007,30]
[400374241,1767453048582,-150.0,0.00042012,30]
[400374242,1767453048592,-150.0,0.00042015,30]
[400374243,1767453048603,-150.0,0.00042022,30]
[400374244,1767453048614,-150.0,0.00042022,30]
[400374245,1767453048623,-150.0,0.0004203,30]
[400374246,1767453048634,-150.0,0.00042037,30]
[400374247,1767453048647,-150.0,0.00042038,30]
[400374248,1767453048658,-269.65709335,0.00042041,2]
[400374249,1767453048668,-150.0,0.00042042,30]
[400374250,1767453048678,-150.0,0.00042043,30]
[400374251,1767453048689,-150.0,0.00042051,30]
[400374252,1767453048699,-150.0,0.00042053,30]
[400374253,1767453048709,-150.0,0.00042061,30]
[400374254,1767453048719,-150.0,0.00042063,30]
[400374255,1767453048730,-150.0,0.00042074,30]
[400374256,1767453048740,-150.0,0.00042076,30]
[400374257,1767453048749,-150.0,0.00042079,30]
[400374258,1767453048759,-150.0,0.00042079,30]
[400374259,1767453048769,-150.0,0.00042079,30]
[400374260,1767453048779,-150.0,0.00042083,30]
[400374261,1767453048789,-150.0,0.00042084,30]
[400374262,1767453048799,-150.0,0.0004209,30]
[400374263,1767453048809,-150.0,0.00042099,30]
[400374264,1767453048818,-150.0,0.00042103,30]
[400374265,1767453048828,-150.0,0.00042106,30]
[400374266,1767453048838,-150.0,0.00042106,30]
[400374267,1767453048849,-150.0,0.00042108,30]
[400374268,1767453048859,-150.0,0.00042108,30]
[400374269,1767453048870,-457.32367886,0.00042121,28]
[400374270,1767453048879,-150.0,0.00042122,30]
[400374271,1767453048890,-150.0,0.00042122,30]
[400374272,1767453048899,-150.0,0.00042123,30]
[400374273,1767453048909,-150.0,0.00042131,30]
[400374274,1767453048919,-150.0,0.00042137,30]
[400374275,1767453048929,-150.0,0.00042137,30]
[400374276,1767453048939,-150.0,0.00042143,30]
[400374277,1767453048950,-150.0,0.00042145,30]
[400374278,1767453048961,-168.0,0.0004215,2]
[400374279,1767453048975,-337.08429119,0.00042151,120]
[400374280,1767453048985,-150.0,0.00042154,30]
[400374281,1767453048995,-150.0,0.00042163,30]
[400374282,1767453049005,-150.0,0.00042165,30]
[400374283,1767453049015,-150.0,0.00042165,30]
[400374284,1767453049025,-150.0,0.00042165,30]
[400374285,1767453049035,-150.0,0.00042168,30]
[400374286,1767453049047,-150.0,0.00042168,30]
[400374287,1767453049056,-150.0,0.00042177,30]
[400374288,1767453049067,-192.0,0.00042178,30]
[400374289,1767453049078,-150.0,0.00042183,30]
[400374290,1767453049087,-150.0,0.00042191,30]
[400374291,1767453049096,-999.0,0.00042191,120]
[400374292,1767453049106,-600.0,0.00042192,120]
[400374293,1767453049115,-150.0,0.00042192,30]
[400374294,1767453049126,-150.0,0.00042194,30]
[400374295,1767453049136,-150.0,0.000422,30]
[400374296,1767453049146,-150.0,0.00042201,30]
[400374297,1767453049157,-150.0,0.00042203,30]
[400374298,1767453049167,-150.0,0.00042208,30]
[400374299,1767453049177,-150.0,0.00042213,30]
[400374300,1767453049188,-150.0,0.00042222,30]
[400374301,1767453049198,-150.0,0.00042223,30]
[400374302,1767453049208,-150.0,0.00042224,30]
[400374303,1767453049219,-150.0,0.00042231,30]
[400374304,1767453049228,-150.0,0.00042231,30]
[400374305,1767453049238,-150.0,0.00042236,30]
[400374306,1767453049248,-150.0,0.00042243,30]
[400374307,1767453049259,-150.0,0.00042247,30]
[400374308,1767453049269,-150.0,0.00042251,30]
[400374309,1767453049279,-150.0,0.00042251,30]
[400374310,1767453049288,-150.0,0.00042251,30]
[400374311,1767453049298,-150.0,0.00042259,30]
[400374312,1767453049308,-150.0,0.00042262,30]
[400374313,1767453049318,-150.0,0.00042264,30]
[400374314,1767453049328,-150.0,0.0004227,30]
[400374315,1767453049337,-150.0,0.00042279,30]
[400374316,1767453049347,-150.0,0.00042282,30]
[400374317,1767453049358,-150.0,0.00042284,30]
[400374318,1767453049368,-150.0,0.00042294,30]
[400374319,1767453049379,-150.0,0.00042294,30]
[400374320,1767453049388,-150.0,0.00042294,30]
[400374321,1767453049398,-150.0,0.00042294,30]
[400374322,1767453049408,-150.0,0.00042304,30]
[400374323,1767453049418,-150.0,0.00042305,30]
[400374324,1767453049428,-150.0,0.00042308,30]
[400374325,1767453049439,-529.42069008,0.00042316,15]
[400374326,1767453049449,-6592.69996949,0.00042316,15]
[400374327,1767453049459,-150.0,0.00042317,30]
[400374328,1767453049469,-150.0,0.00042324,30]
[400374329,1767453049480,-150.0,0.00042325,30]
[400374330,1767453049491,-150.0,0.00042328,30]
[400374331,1767453049501,-600.0,0.00042332,60]
[400374332,1767453049511,-500.0,0.00042332,60]
[400374333,1767453049522,-150.0,0.00042337,30]
[400374334,1767453049532,-150.0,0.00042337,30]
[400374335,1767453049541,-150.0,0.00042337,30]
[400374336,1767453049551,-150.0,0.0004234,30]
[400374337,1767453049561,-150.0,0.00042344,30]
[400374338,1767453049571,-150.0,0.00042351,30]
[400374339,1767453049581,-150.0,0.00042356,30]
[400374340,1767453049591,-150.0,0.00042356,30]
[400374341,1767453049601,-269.65709335,0.00042361,2]
[400374342,1767453049612,-150.0,0.00042364,30]
[400374343,1767453049622,-150.0,0.00042364,30]
[400374344,1767453049632,-150.0,0.00042365,30]
[400374345,1767453049642,-150.0,0.00042374,30]
[400374346,1767453049652,-150.0,0.00042379,30]
[400374347,1767453049663,-150.0,0.00042384,30]
[400374348,1767453049673,-150.0,0.00042387,30]
[400374349,1767453049683,-150.0,0.00042388,30]
[400374350,1767453049695,-150.0,0.00042394,30]
[400374351,1767453049705,-150.0,0.00042396,30]
[400374352,1767453049715,-150.0,0.00042397,30]
[400374353,1767453049724,-150.0,0.00042404,30]
[400374354,1767453049734,-150.0,0.0004241,30]
[400374355,1767453049744,-150.0,0.00042419,30]
[400374356,1767453049754,-150.0,0.0004242,30]
[400374357,1767453049764,-150.0,0.00042422,30]
[400374358,1767453049774,-150.0,0.00042422,30]
[400374359,1767453049784,-150.0,0.00042422,30]
[400374360,1767453049794,-150.0,0.00042424,30]
[400374361,1767453049804,-150.0,0.00042433,30]
[400374362,1767453049815,-156.52624553,0.00042434,39]
[400374363,1767453049825,-150.0,0.00042443,30]
[400374364,1767453049835,-150.0,0.00042445,30]
[400374365,1767453049845,-150.0,0.0004245,30]
[400374366,1767453049855,-150.0,0.00042451,30]
[400374367,1767453049865,-150.0,0.00042457,30]
[400374368,1767453049875,-150.0,0.00042465,30]
[400374369,1767453049885,-150.0,0.00042465,30]
[400374370,1767453049896,-150.0,0.00042466,30]
[400374371,1767453049906,-150.0,0.00042479,30]
[400374372,1767453049916,-150.0,0.0004248,30]
[400374373,1767453049926,-150.0,0.00042482,30]
[400374374,1767453049937,-150.0,0.00042482,30]
[400374375,1767453049947,-150.0,0.00042485,30]
[400374376,1767453049957,-150.0,0.00042489,30]
[400374377,1767453049969,-190.33208066,0.00042497,30]
[400374378,1767453049980,-150.0,0.00042497,30]
[400374379,1767453049990,-150.0,0.00042503,30]
[400374380,1767453050000,-150.0,0.00042505,30]
[400374381,1767453050010,-150.0,0.00042508,30]
[400374382,1767453050021,-150.0,0.00042508,30]
[400374383,1767453050031,-150.0,0.00042508,30]
[400374384,1767453050041,-150.0,0.00042512,30]
[400374385,1767453050051,-150.0,0.00042513,30]
[400374386,1767453050061,-150.0,0.00042525,30]
[400374387,1767453050071,-150.0,0.00042526,30]
[400374388,1767453050082,-150.0,0.00042535,30]
[400374389,1767453050092,-150.0,0.00042537,30]
[400374390,1767453050102,-150.0,0.00042544,30]
[400374391,1767453050112,-150.0,0.00042545,30]
[400374392,1767453050122,-150.0,0.0004255,30]
[400374393,1767453050132,-150.0,0.00042551,30]
[400374394,1767453050142,-150.0,0.00042558,30]
[400374395,1767453050152,-150.0,0.00042565,30]
[400374396,1767453050162,-150.0,0.00042565,30]
[400374397,1767453050172,-150.0,0.00042573,30]
[400374398,1767453050182,-150.0,0.00042576,30]
[400374399,1767453050192,-150.0,0.0004258,30]
[400374400,1767453050201,-150.0,0.00042585,30]
[400374401,1767453050212,-150.0,0.00042594,30]
[400374402,1767453050222,-150.0,0.00042594,30]
[400374403,1767453050232,-150.0,0.00042594,30]
[400374404,1767453050242,-150.0,0.00042596,30]
[400374405,1767453050254,-150.0,0.00042599,30]
[400374406,1767453050265,-150.0,0.00042603,30]
[400374407,1767453050275,-150.0,0.00042605,30]
[400374408,1767453050285,-150.0,0.00042607,30]
[400374409,1767453050297,-150.0,0.00042607,30]
[400374410,1767453050307,-192.0,0.00042608,30]
[400374411,1767453050318,-150.0,0.00042619,30]
[400374412,1767453050328,-150.0,0.00042622,30]
[400374413,1767453050338,-150.0,0.00042625,30]
[400374414,1767453050348,-150.0,0.00042626,30]
[400374415,1767453050359,-150.0,0.00042637,30]
[400374416,1767453050369,-150.0,0.00042638,30]
[400374417,1767453050379,-150.0,0.00042643,30]
[400374418,1767453050390,-150.0,0.00042646,30]
[400374419,1767453050401,-150.0,0.00042649,30]
[400374420,1767453050411,-150.0,0.00042651,30]
[400374421,1767453050422,-2000.0,0.00042666,3]
[400374422,1767453050433,-150.0,0.00042666,30]
[400374423,1767453050443,-150.0,0.00042666,30]
[400374424,1767453050454,-150.0,0.0004267,30]
[400374425,1767453050464,-150.0,0.00042672,30]
[400374426,1767453050474,-500.0,0.00042673,10]
[400374427,1767453050484,-500.0,0.00042673,10]
[400374428,1767453050494,-500.0,0.00042673,10]
[400374429,1767453050504,-500.0,0.00042673,10]
[400374430,1767453050514,-500.0,0.00042673,10]
[400374431,1767453050524,-500.0,0.00042673,10]
[400374432,1767453050534,-500.0,0.00042673,10]
[400374433,1767453050546,-500.0,0.00042673,10]
[400374434,1767453050556,-500.25406719,0.00042673,10]
[400374435,1767453050566,-500.0,0.00042673,10]
[400374436,1767453050576,-500.0,0.00042673,10]
[400374437,1767453050586,-618.15037919,0.00042673,5]
[400374438,1767453050596,-500.0,0.00042673,10]
[400374439,1767453050607,-500.0,0.00042673,10]
[400374440,1767453050618,-500.0,0.00042673,10]
[400374441,1767453050628,-500.0,0.00042673,10]
[400374442,1767453050639,-160.47890875,0.00042673,10]
[400374443,1767453050649,-383.83676064,0.00042673,10]
[400374444,1767453050660,-500.17058704,0.00042673,10]
[400374445,1767453050670,-510.4345726,0.00042673,10]
[400374446,1767453050680,-511.6387826,0.00042673,10]
[400374447,1767453050690,-260.60456049,0.00042673,10]
[400374448,1767453050700,-160.48993212,0.00042673,10]
[400374449,1767453050711,-500.0,0.00042673,10]
[400374450,1767453050720,-500.0,0.00042673,10]
[400374451,1767453050730,-378.48431635,0.00042673,10]
[400374452,1767453050740,-500.0,0.00042673,7]
[400374453,1767453050751,-500.0,0.00042673,10]
[400374454,1767453050760,-500.53069493,0.00042673,10]
[400374455,1767453050770,-500.0,0.00042673,10]
[400374456,1767453050780,-503.73673391,0.00042673,10]
[400374457,1767453050790,-283.11616372,0.00042673,10]
[400374458,1767453050801,-506.64217996,0.00042673,10]
[400374459,1767453050812,-307.85239633,0.00042673,10]
[400374460,1767453050822,-500.0,0.00042673,10]
[400374461,1767453050832,-160.48419622,0.00042673,10]
[400374462,1767453050843,-500.0,0.00042673,10]
[400374463,1767453050855,-501.04887235,0.00042673,10]
[400374464,1767453050865,-500.0,0.00042673,10]
[400374465,1767453050876,-500.0,0.00042673,10]
[400374466,1767453050886,-500.0,0.00042673,10]
[400374467,1767453050896,-160.61780186,0.00042673,10]
[400374468,1767453050906,-500.0,0.00042673,10]
[400374469,1767453050916,-168.66798741,0.00042673,10]
[400374470,1767453050927,-150.0,0.00042673,10]
[400374471,1767453051117,-500.0,0.00042673,10]
[400374472,1767453051127,-500.0,0.00042673,10]
[400374473,1767453051138,-500.0,0.00042673,10]
[400374474,1767453051150,-500.0,0.00042673,5]
[400374475,1767453051160,-500.0,0.00042673,10]
[400374476,1767453051171,-483.92534675,0.00042673,10]
[400374477,1767453051181,-500.89039027,0.00042673,10]
[400374478,1767453051191,-165.13932683,0.00042673,10]
[400374479,1767453051201,-161.92241187,0.00042673,2]
[400374480,1767453051211,-500.38122606,0.00042673,10]
[400374481,1767453051221,-500.0,0.00042673,10]
[400374482,1767453051232,-500.0,0.00042673,10]
[400374483,1767453051242,-168.91753678,0.00042673,10]
[400374484,1767453051252,-164.00885732,0.00042673,10]
[400374485,1767453051262,-165.870497,0.00042673,10]
[400374486,1767453051273,-551.86853596,0.00042673,10]
[400374487,1767453051283,-150.0,0.00042679,30]
[400374488,1767453051293,-150.0,0.00042679,30]
[400374489,1767453051304,-150.0,0.00042679,30]
[400374490,1767453051314,-269.65709335,0.0004268,2]
[400374491,1767453051325,-150.0,0.00042686,30]
[400374492,1767453051335,-150.0,0.00042689,30]
[400374493,1767453051346,-150.0,0.00042695,30]
[400374494,1767453051357,-150.0,0.00042701,30]
[400374495,1767453051367,-150.0,0.00042701,30]
[400374496,1767453051378,-150.0,0.00042706,30]
[400374497,1767453051389,-150.0,0.00042708,30]
[400374498,1767453051399,-150.0,0.00042712,30]
[400374499,1767453051409,-150.0,0.00042718,30]
[400374500,1767453051420,-150.0,0.00042722,30]
[400374501,1767453051431,-150.0,0.00042726,30]
[400374502,1767453051442,-150.0,0.00042732,30]
[400374503,1767453051453,-150.0,0.00042732,30]
[400374504,1767453051463,-150.0,0.00042736,30]
[400374505,1767453051474,-150.0,0.00042737,30]
[400374506,1767453051485,-600.0,0.0004274,120]
[400374507,1767453051495,-150.0,0.00042741,30]
[400374508,1767453051506,-150.0,0.00042746,30]
[400374509,1767453051516,-150.0,0.00042759,30]
[400374510,1767453051527,-150.0,0.00042763,30]
[400374511,1767453051538,-150.0,0.00042764,30]
[400374512,1767453051549,-150.0,0.00042765,30]
[400374513,1767453051559,-150.0,0.00042765,30]
[400374514,1767453051570,-150.0,0.00042765,30]
[400374515,1767453051581,-150.0,0.00042766,30]
[400374516,1767453051591,-1177.58596832,0.00042779,60]
[400374517,1767453051603,-150.0,0.00042782,30]
[400374518,1767453051613,-210.98688708,0.00042784,8]
[400374519,1767453051623,-1498.16710801,0.00042784,2]
[400374520,1767453051634,-150.0,0.00042786,30]
[400374521,1767453051645,-150.0,0.00042787,30]
[400374522,1767453051655,-150.0,0.00042794,30]
[400374523,1767453051666,-150.0,0.00042795,30]
[400374524,1767453051676,-253.0,0.000428,40]
[400374525,1767453051687,-150.0,0.00042803,30]
[400374526,1767453051698,-150.0,0.00042806,30]
[400374527,1767453051708,-150.0,0.00042806,30]
[400374528,1767453051719,-150.0,0.00042808,30]
[400374529,1767453051729,-150.0,0.0004281,30]
[400374530,1767453051740,-150.0,0.00042822,30]
[400374531,1767453051751,-150.0,0.00042826,30]
[400374532,1767453051761,-150.0,0.00042827,30]
[400374533,1767453051771,-150.0,0.00042829,30]
[400374534,1767453051782,-3035.2467011,0.00042832,2]
[400374535,1767453051793,-150.0,0.00042833,30]
[400374536,1767453051803,-484.10350084,0.00042836,2]
[400374537,1767453051814,-150.0,0.00042847,30]
[400374538,1767453051824,-183.10634406,0.00042847,2]
[400374539,1767453051835,-242.53237733,0.00042847,2]
[400374540,1767453051846,-150.0,0.00042851,30]
[400374541,1767453051856,-150.0,0.00042851,30]
[400374542,1767453051866,-150.0,0.00042851,30]
[400374543,1767453051876,-150.0,0.00042852,30]
[400374544,1767453051887,-150.0,0.00042856,30]
[400374545,1767453051902,-150.0,0.00042857,30]
[400374546,1767453051913,-150.0,0.00042857,30]
[400374547,1767453051923,-5800.0,0.00042858,14]
[400374548,1767453051934,-168.45900988,0.0004286,40]
[400374549,1767453051945,-5800.0,0.00042867,14]
[400374550,1767453051955,-150.0,0.00042867,30]
[400374551,1767453051968,-150.0,0.00042868,2]
[400374552,1767453051980,-881.70866492,0.00042868,2]
[400374553,1767453051991,-5800.0,0.00042875,14]
[400374554,1767453052002,-150.0,0.00042875,30]
[400374555,1767453052014,-150.0,0.00042879,30]
[400374556,1767453052025,-150.0,0.00042879,30]
[400374557,1767453052035,-600.0,0.0004288,60]
[400374558,1767453052046,-461422.87247904,0.0004288,120]
[400374559,1767453052065,-255336.81492688,0.0004288,120]
[400374560,1767453052076,-5800.0,0.00042883,14]
[400374561,1767453052087,-150.0,0.00042887,30]
[400374562,1767453052098,-150.0,0.00042889,30]
[400374563,1767453052107,-5800.0,0.00042892,14]
[400374564,1767453052117,-1498.16710801,0.00042892,2]
[400374565,1767453052128,-150.0,0.00042894,30]
[400374566,1767453052138,-150.0,0.00042899,30]
[400374567,1767453052147,-1522.09,0.000429,120]
[400374568,1767453052157,-599.04478315,0.000429,120]
[400374569,1767453052167,-410.0,0.000429,27]
[400374570,1767453052177,-175.34,0.000429,30]
[400374571,1767453052187,-5269.3,0.000429,14]
[400374572,1767453052198,-5800.0,0.00042901,14]
[400374573,1767453052209,-150.0,0.00042902,30]
[400374574,1767453052219,-150.0,0.00042904,30]
[400374575,1767453052230,-150.0,0.00042907,30]
[400374576,1767453052240,-150.0,0.00042908,30]
[400374577,1767453052249,-238.419505,0.00042908,2]
[400374578,1767453052259,-4359.9515663,0.00042908,2]
[400374579,1767453052270,-5800.0,0.00042909,14]
[400374580,1767453052281,-5800.0,0.00042918,14]
[400374581,1767453052290,-484.10350084,0.00042918,2]
[400374582,1767453052301,-200.0,0.00042919,120]
[400374583,1767453052312,-25000.0,0.0004292,15]
[400374584,1767453052322,-150.0,0.0004292,30]
[400374585,1767453052332,-150.0,0.00042922,30]
[400374586,1767453052342,-242.53237733,0.00042924,2]
[400374587,1767453052352,-150.0,0.00042925,30]
[400374588,1767453052363,-5800.0,0.00042926,14]
[400374589,1767453052374,-150.0,0.00042927,30]
[400374590,1767453052384,-25000.0,0.00042929,15]
[400374591,1767453052395,-150.0,0.00042937,30]
[400374592,1767453052405,-150.0,0.00042937,30]
[400374593,1767453052415,-150.0,0.00042937,30]
[400374594,1767453052424,-25000.0,0.00042937,15]
[400374595,1767453052435,-150.0,0.00042945,30]
[400374596,1767453052445,-25000.0,0.00042946,15]
[400374597,1767453052456,-150.0,0.00042947,30]
[400374598,1767453052466,-150.0,0.00042947,30]
[400374599,1767453052477,-150.0,0.00042951,30]
[400374600,1767453052489,-294.82,0.00042955,120]
[400374601,1767453052500,-25000.0,0.00042955,15]
[400374602,1767453052510,-4608.21217369,0.00042955,15]
[400374603,1767453052521,-150.0,0.00042965,30]
[400374604,1767453052532,-150.0,0.00042967,30]
[400374605,1767453052543,-150.0,0.00042968,30]
[400374606,1767453052553,-300.0,0.0004297,3]
[400374607,1767453052563,-400.0,0.0004297,3]
[400374608,1767453052573,-300.0,0.0004297,3]
[400374609,1767453052584,-400.0,0.0004297,3]
[400374610,1767453052595,-300.65685199,0.0004297,3]
[400374611,1767453052604,-501.69038348,0.0004297,3]
[400374612,1767453052616,-150.0,0.0004297,30]
[400374613,1767453052626,-150.0,0.00042973,8]
[400374614,1767453052637,-150.0,0.00042979,30]
[400374615,1767453052647,-150.0,0.00042983,30]
[400374616,1767453052658,-150.0,0.00042983,30]
[400374617,1767453052668,-150.0,0.00042987,30]
[400374618,1767453052679,-150.0,0.00042992,30]
[400374619,1767453052690,-150.0,0.00042993,30]
[400374620,1767453052700,-150.0,0.00042994,30]
[400374621,1767453052709,-346.40577184,0.00043,120]
[400374622,1767453052719,-58858.2154982,0.00043,60]
[400374623,1767453052729,-5000.0,0.00043,120]
[400374624,1767453052739,-25000.0,0.00043,120]
[400374625,1767453052749,-165.0,0.00043,10]
[400374626,1767453052759,-457.32367886,0.00043,28]
[400374627,1767453052769,-529.42069008,0.00043,15]
[400374628,1767453052779,-210.98688708,0.00043,8]
[400374629,1767453052790,-269.65709335,0.00043,2]
[400374630,1767453052800,-1498.16710801,0.00043,2]
[400374631,1767453052810,-484.10350084,0.00043,2]
[400374632,1767453052819,-337.08429119,0.00043,120]
[400374633,1767453052829,-183.10634405,0.00043,2]
[400374634,1767453052840,-6592.69996949,0.00043,15]
[400374635,1767453052849,-242.53237733,0.00043,2]
[400374636,1767453052860,-150.0,0.00043006,30]
[400374637,1767453052871,-150.0,0.00043007,30]
[400374638,1767453052881,-150.0,0.00043014,30]
[400374639,1767453052891,-150.0,0.00043015,30]
[400374640,1767453052901,-150.0,0.00043016,30]
[400374641,1767453052911,-150.0,0.00043022,30]
[400374642,1767453052921,-150.0,0.00043022,30]
[400374643,1767453052931,-150.0,0.00043022,30]
[400374644,1767453052942,-150.0,0.00043028,30]
[400374645,1767453052951,-150.0,0.00043038,30]
[400374646,1767453052961,-192.0,0.00043038,30]
[400374647,1767453052976,-150.0,0.00043039,30]
[400374648,1767453052987,-220.0,0.0004304,120]
[400374649,1767453052997,-472.47,0.0004304,2]
[400374650,1767453053008,-150.0,0.00043045,30]
[400374651,1767453053018,-150.0,0.00043048,30]
[400374652,1767453053028,-150.0,0.00043051,30]
[400374653,1767453053038,-151.0,0.00043053,120]
[400374654,1767453053050,-500.0,0.00043053,120]
[400374655,1767453053060,-500.0,0.00043053,120]
[400374656,1767453053070,-500.0,0.00043053,120]
[400374657,1767453053080,-250.0,0.00043053,120]
[400374658,1767453053090,-151.0,0.00043055,31]
[400374659,1767453053100,-151.0,0.00043055,120]
[400374660,1767453053110,-500.0,0.00043055,31]
[400374661,1767453053120,-500.0,0.00043055,120]
[400374662,1767453053130,-500.0,0.00043055,31]
[400374663,1767453053140,-500.0,0.00043055,31]
[400374664,1767453053150,-500.0,0.00043055,120]
[400374665,1767453053160,-500.0,0.00043055,120]
[400374666,1767453053170,-250.0,0.00043055,31]
[400374667,1767453053180,-250.0,0.00043055,120]
[400374668,1767453053190,-151.0,0.00043056,30]
[400374669,1767453053200,-500.0,0.00043056,30]
[400374670,1767453053209,-151.0,0.00043056,60]
[400374671,1767453053220,-461.67526834,0.00043056,30]
[400374672,1767453053231,-500.0,0.00043056,60]
[400374673,1767453053241,-151.0,0.00043056,120]
[400374674,1767453053251,-510.645413,0.00043056,60]
[400374675,1767453053262,-500.0,0.00043056,120]
[400374676,1767453053272,-500.0,0.00043056,30]
[400374677,1767453053282,-500.0,0.00043056,60]
[400374678,1767453053291,-500.0,0.00043056,30]
[400374679,1767453053301,-500.0,0.00043056,120]
[400374680,1767453053310,-500.0,0.00043056,60]
[400374681,1767453053320,-500.0,0.00043056,120]
[400374682,1767453053330,-250.0,0.00043056,30]
[400374683,1767453053340,-250.0,0.00043056,60]
[400374684,1767453053349,-250.0,0.00043056,120]
[400374685,1767453053361,-150.0,0.00043061,30]
[400374686,1767453053372,-150.0,0.00043062,30]
[400374687,1767453053383,-150.0,0.00043065,30]
[400374688,1767453053393,-150.0,0.00043068,30]
[400374689,1767453053404,-400.0,0.0004307,3]
[400374690,1767453053414,-300.0,0.0004307,3]
[400374691,1767453053424,-400.0,0.0004307,3]
[400374692,1767453053435,-300.0,0.0004307,3]
[400374693,1767453053446,-168.0,0.00043071,2]
[400374694,1767453053456,-150.0,0.00043073,10]
[400374695,1767453053467,-150.0,0.00043077,30]
[400374696,1767453053478,-150.0,0.00043079,30]
[400374697,1767453053490,-150.0,0.00043085,30]
[400374698,1767453053502,-150.0,0.00043085,30]
[400374699,1767453053512,-150.0,0.00043088,30]
[400374700,1767453053522,-271.95027127,0.00043099,38]
[400374701,1767453053532,-151.0,0.00043099,38]
[400374702,1767453053543,-429.318,0.00043099,38]
[400374703,1767453053553,-500.0,0.00043099,38]
[400374704,1767453053564,-151.0,0.00043099,120]
[400374705,1767453053575,-445.202766,0.00043099,120]
[400374706,1767453053586,-500.0,0.00043099,120]
[400374707,1767453053597,-254.856,0.00043099,38]
[400374708,1767453053607,-500.0,0.00043099,38]
[400374709,1767453053618,-500.0,0.00043099,120]
[400374710,1767453053628,-500.0,0.00043099,38]
[400374711,1767453053639,-500.0,0.00043099,120]
[400374712,1767453053651,-250.0,0.00043099,38]
[400374713,1767453053662,-250.0,0.00043099,120]
[400374714,1767453053672,-343.5374829,0.00043099,38]
[400374715,1767453053682,-264.42317781,0.00043099,38]
[400374716,1767453053692,-600.0,0.00043099,120]
[400374717,1767453053703,-600.0,0.00043099,120]
[400374718,1767453053713,-2346.46,0.000431,120]
[400374719,1767453053722,-128269.42869104,0.000431,120]
[400374720,1767453053843,-291000.0,0.000431,120]
[400374721,1767453053856,-2306.23392279,0.000431,120]
[400374722,1767453054039,-4795.99402259,0.000431,120]
[400374726,1767453178985,1034.21864816,0.00032876,120]
[400374765,1767453547244,195.0,0.00032864,120]
[400374766,1767453547362,195.0,0.00030596,120]
[400374767,1767453550248,2500.0,0.00032864,120]
[400374768,1767453551289,1468.49487449,0.00030596,120]
[400374769,1767453552481,600.0,0.00032864,120]
[400374771,1767453552633,210.86038758,0.00030596,120]
[400374811,1767453908601,2000000.0,0.00018,2]
[400374812,1767453908640,1945234.46835654,0.00018,2]
[400374813,1767453908687,195897.1,0.00018,2]
[400374814,1767453908721,2000000.0,0.00018,2]
[400374828,1767453994056,388.25698251,0.00017999,2]
[400374829,1767453994120,153.05593379,0.00017999,2]
[400374830,1767453995269,500.0,0.00017999,2]
[400374831,1767453995309,500.0,0.00017999,2]
[400374832,1767453995343,500.0,0.00017999,2]